[Event "South Island Championships 2023"]
[Site "Oamaru, New Zealand"]
[Date "????.??.??"]
[Round "5.7"]
[White "Familton, Gregory"]
[Black "Carpinter, Anthony L"]
[Result "1-0"]
[TimeControl "90 + 30"]
[WhiteFideId "4317190"]
[BlackFideId "4300238"]
[WhiteElo "1751"]
[BlackElo "2217"]

1. e4 {[%clk 01:30:58]} {[%emt 00:00:02]} e6 {[%clk 01:30:51]} {[%emt
00:00:09]} 2. Nc3 {[%clk 01:31:24]} {[%emt 00:00:04]} d5 {[%clk 01:30:56]}
{[%emt 00:00:23]} 3. Nf3 {[%clk 01:31:54]} Nf6 {[%clk 01:31:17]} {[%emt
00:00:11]} 4. e5 {[%clk 01:32:15]} {[%emt 00:00:10]} Nfd7 {[%clk 01:31:41]}
{[%emt 00:00:05]} 5. d4 {[%clk 01:32:43]} {[%emt 00:00:02]} c5 {[%clk
01:32:01]} {[%emt 00:00:11]} 6. dxc5 {[%clk 01:33:07]} {[%emt 00:00:06]} Nc6
{[%clk 01:31:51]} {[%emt 00:00:40]} 7. Bf4 {[%clk 01:33:10]} {[%emt 00:00:26]}
f6 {[%clk 01:31:41]} {[%emt 00:00:40]} 8. exf6 {[%clk 01:30:10]} {[%emt
00:03:30]} Qxf6 {[%clk 01:31:53]} {[%emt 00:00:18]} 9. Bg5 {[%clk 01:22:02]}
{[%emt 00:08:38]} Qf7 {[%clk 01:32:11]} {[%emt 00:00:12]} 10. Bd3 {[%clk
01:08:11]} {[%emt 00:14:21]} Nxc5 {[%clk 01:30:42]} {[%emt 00:01:59]} 11. O-O
{[%clk 01:08:19]} {[%emt 00:00:23]} Bd6 {[%clk 01:28:52]} {[%emt 00:02:19]} 12.
Re1 {[%clk 00:57:19]} {[%emt 00:11:30]} O-O {[%clk 01:28:09]} {[%emt 00:01:13]}
13. Bh4 {[%clk 00:54:39]} {[%emt 00:03:10]} h6 {[%clk 01:24:49]} {[%emt
00:03:50]} 14. Bg3 {[%clk 00:47:46]} {[%emt 00:07:23]} Bf4 {[%clk 01:16:43]}
{[%emt 00:08:35]} 15. Bb5 {[%clk 00:41:31]} {[%emt 00:06:45]} Bxg3 {[%clk
00:53:10]} {[%emt 00:24:03]} 16. hxg3 {[%clk 00:41:16]} {[%emt 00:00:46]} Bd7
{[%clk 00:52:11]} {[%emt 00:01:29]} 17. a3 {[%clk 00:38:10]} {[%emt 00:03:36]}
a6 {[%clk 00:46:38]} {[%emt 00:06:03]} 18. Bxc6 {[%clk 00:33:14]} {[%emt
00:05:27]} Bxc6 {[%clk 00:45:32]} {[%emt 00:01:35]} 19. Qe2 {[%clk 00:28:42]}
{[%emt 00:05:02]} Rfe8 {[%clk 00:31:05]} {[%emt 00:14:57]} 20. Ne5 {[%clk
00:26:52]} {[%emt 00:02:19]} Qc7 {[%clk 00:29:10]} {[%emt 00:02:25]} 21. Nxc6
{[%clk 00:22:30]} {[%emt 00:04:54]} bxc6 {[%clk 00:28:31]} {[%emt 00:01:08]} 22.
Qg4 {[%clk 00:22:16]} {[%emt 00:00:44]} e5 {[%clk 00:25:52]} {[%emt 00:03:08]}
23. Re2 {[%clk 00:20:17]} {[%emt 00:02:30]} Re7 {[%clk 00:25:18]} {[%emt
00:01:04]} 24. Rae1 {[%clk 00:20:29]} {[%emt 00:00:18]} Rae8 {[%clk 00:24:17]}
{[%emt 00:01:30]} 25. Nd1 {[%clk 00:17:59]} {[%emt 00:03:00]} Nd7 {[%clk
00:20:47]} {[%emt 00:04:00]} 26. Ne3 {[%clk 00:17:31]} {[%emt 00:00:58]} Nf6
{[%clk 00:20:25]} {[%emt 00:00:52]} 27. Qg6 {[%clk 00:17:00]} {[%emt 00:01:02]}
Ne4 {[%clk 00:16:21]} {[%emt 00:04:34]} 28. Nf5 {[%clk 00:16:04]} {[%emt
00:01:26]} Re6 {[%clk 00:16:32]} {[%emt 00:00:19]} 29. Qg4 {[%clk 00:13:18]}
{[%emt 00:03:15]} Rf6 {[%clk 00:15:05]} {[%emt 00:01:56]} 30. c4 {[%clk
00:10:08]} {[%emt 00:03:41]} Ref8 {[%clk 00:12:24]} {[%emt 00:03:10]} 31. cxd5
{[%clk 00:08:31]} {[%emt 00:02:08]} cxd5 {[%clk 00:12:31]} {[%emt 00:00:22]} 32.
Ne3 {[%clk 00:08:29]} {[%emt 00:00:32]} Qc5 {[%clk 00:09:16]} {[%emt 00:03:45]}
33. f3 {[%clk 00:07:10]} {[%emt 00:01:48]} Ng5 {[%clk 00:09:07]} {[%emt
00:00:40]} 34. Qb4 {[%clk 00:07:16]} {[%emt 00:00:25]} Qxb4 {[%clk 00:03:47]}
{[%emt 00:05:50]} 35. axb4 {[%clk 00:07:44]} {[%emt 00:00:02]} Rd6 {[%clk
00:04:15]} {[%emt 00:00:01]} 36. Rd1 {[%clk 00:07:18]} {[%emt 00:00:57]} Rfd8
{[%clk 00:03:58]} {[%emt 00:00:47]} 37. Nf5 {[%clk 00:06:05]} {[%emt 00:01:42]}
Re6 {[%clk 00:04:01]} {[%emt 00:00:27]} 38. f4 {[%clk 00:06:22]} {[%emt
00:00:14]} Ne4 {[%clk 00:04:06]} {[%emt 00:00:25]} 39. Rxe4 {[%clk 00:06:35]}
{[%emt 00:00:17]} Kf7 {[%clk 00:03:19]} {[%emt 00:01:17]} 40. Rxe5 {[%clk
00:05:22]} {[%emt 00:01:43]} Rxe5 {[%clk 00:03:31]} {[%emt 00:00:17]} 41. fxe5
{[%clk 00:05:51]} {[%emt 00:00:02]} Ke6 {[%clk 00:03:51]} {[%emt 00:00:09]} 42.
Nxg7+ {[%clk 00:05:44]} {[%emt 00:00:37]} Kxe5 {[%clk 00:04:12]} {[%emt
00:00:09]} 43. Nh5 {[%clk 00:05:53]} {[%emt 00:00:22]} Rb8 {[%clk 00:02:56]}
{[%emt 00:01:46]} 44. Nf4 {[%clk 00:06:12]} {[%emt 00:00:10]} Rb5 {[%clk
00:02:50]} {[%emt 00:00:36]} 45. Kf2 {[%clk 00:06:11]} {[%emt 00:00:32]} Ke4
{[%clk 00:02:48]} {[%emt 00:00:32]} 46. Nd3 {[%clk 00:04:13]} {[%emt 00:02:27]}
a5 {[%clk 00:03:11]} {[%emt 00:00:07]} 47. bxa5 {[%clk 00:03:44]} {[%emt
00:01:00]} Rxa5 {[%clk 00:03:35]} {[%emt 00:00:06]} 48. Nb4 {[%clk 00:03:48]}
{[%emt 00:00:26]} Rb5 {[%clk 00:03:48]} {[%emt 00:00:16]} 49. Nxd5 {[%clk
00:03:29]} {[%emt 00:00:49]} Rxb2+ {[%clk 00:04:04]} {[%emt 00:00:14]} 50. Kg1
{[%clk 00:03:37]} {[%emt 00:00:23]} Kf5 {[%clk 00:03:44]} {[%emt 00:00:50]} 51.
Ne3+ {[%clk 00:03:38]} {[%emt 00:00:29]} Ke4 {[%clk 00:03:03]} {[%emt
00:01:11]} 52. Re1 {[%clk 00:03:56]} {[%emt 00:00:12]} Kd3 {[%clk 00:02:58]}
{[%emt 00:00:35]} 53. Ng4 {[%clk 00:03:59]} {[%emt 00:00:27]} Rb6 {[%clk
00:03:19]} {[%emt 00:04:22]} 54. Rf1 {[%clk 00:03:56]} h5 {[%clk 00:03:21]} 55.
Rf3+ {[%clk 00:03:28]} Ke2 {[%clk 00:03:07]} 56. Nf6 {[%clk 00:03:39]} Rb5
{[%clk 00:03:20]} 57. Kh2 {[%clk 00:03:39]} Ke1 {[%clk 00:03:01]} {[%emt
00:00:24]} 58. Kh3 {[%clk 00:04:01]} {[%emt 00:00:08]} Ra5 {[%clk 00:03:10]}
{[%emt 00:00:21]} 59. Kh4 {[%clk 00:04:30]} {[%emt 00:00:02]} Ra2 {[%clk
00:03:39]} {[%emt 00:00:01]} 60. Nxh5 {[%clk 00:03:21]} {[%emt 00:01:38]} Rxg2
{[%clk 00:03:58]} {[%emt 00:00:10]} 61. Kg5 {[%clk 00:03:40]} {[%emt 00:00:13]}
Ke2 {[%clk 00:04:11]} {[%emt 00:00:17]} 62. Rf8 {[%clk 00:04:03]} 1-0

[Event "South Island Championships 2023"]
[Site "Oamaru, New Zealand"]
[Date "????.??.??"]
[Round "5.3"]
[White "Liu, William Rui"]
[Black "Christie, Richie"]
[Result "1/2-1/2"]
[TimeControl "90 + 30"]
[WhiteFideId "4313593"]
[BlackFideId "4307470"]
[WhiteElo "2094"]
[BlackElo "1927"]

1. e4 {[%clk 01:30:56]} {[%emt 00:00:03]} Nf6 {[%clk 01:30:56]} {[%emt
00:00:04]} 2. e5 {[%clk 01:31:15]} {[%emt 00:00:11]} Nd5 {[%clk 01:31:22]}
{[%emt 00:00:05]} 3. d4 {[%clk 01:31:39]} {[%emt 00:00:05]} d6 {[%clk
01:31:51]} {[%emt 00:00:01]} 4. c4 {[%clk 01:32:02]} {[%emt 00:00:07]} Nb6
{[%clk 01:32:20]} {[%emt 00:00:01]} 5. exd6 {[%clk 01:32:25]} {[%emt 00:00:07]}
cxd6 {[%clk 01:32:49]} {[%emt 00:00:01]} 6. Nc3 {[%clk 01:32:43]} {[%emt
00:00:11]} g6 {[%clk 01:33:16]} {[%emt 00:00:04]} 7. Be3 {[%clk 01:33:07]}
{[%emt 00:00:05]} Bg7 {[%clk 01:33:41]} {[%emt 00:00:05]} 8. Rc1 {[%clk
01:33:31]} {[%emt 00:00:06]} O-O {[%clk 01:34:01]} {[%emt 00:00:11]} 9. b3
{[%clk 01:33:48]} {[%emt 00:00:12]} f5 {[%clk 01:34:14]} {[%emt 00:00:17]} 10.
f4 {[%clk 01:32:21]} {[%emt 00:01:57]} e5 {[%clk 01:28:54]} {[%emt 00:05:50]}
11. dxe5 {[%clk 01:29:18]} {[%emt 00:03:33]} dxe5 {[%clk 01:26:27]} {[%emt
00:02:57]} 12. Qxd8 {[%clk 01:28:32]} {[%emt 00:01:16]} Rxd8 {[%clk 01:26:56]}
{[%emt 00:00:02]} 13. c5 {[%clk 01:28:47]} {[%emt 00:00:15]} exf4 {[%clk
01:19:10]} {[%emt 00:08:15]} 14. Bxf4 {[%clk 01:27:05]} {[%emt 00:02:13]} Bxc3+
{[%clk 01:16:26]} {[%emt 00:03:13]} 15. Rxc3 {[%clk 01:27:21]} {[%emt
00:00:14]} Nd5 {[%clk 01:15:57]} {[%emt 00:00:59]} 16. Bc4 {[%clk 01:25:26]}
{[%emt 00:02:25]} Be6 {[%clk 01:14:13]} {[%emt 00:02:14]} 17. Rd3 {[%clk
01:18:45]} {[%emt 00:07:11]} Bf7 {[%clk 01:10:22]} {[%emt 00:04:21]} 18. Bxd5
{[%clk 01:14:37]} {[%emt 00:04:38]} Rxd5 {[%clk 01:10:02]} {[%emt 00:00:50]} 19.
Rxd5 {[%clk 01:14:41]} {[%emt 00:00:26]} Bxd5 {[%clk 01:10:31]} 20. Kf2 {[%clk
01:14:59]} {[%emt 00:00:12]} Na6 {[%clk 01:06:48]} {[%emt 00:04:13]} 21. Bd6
{[%clk 00:45:21]} {[%emt 00:30:08]} Rc8 {[%clk 01:04:42]} {[%emt 00:02:36]} 22.
Nf3 {[%clk 00:42:14]} {[%emt 00:03:36]} Nxc5 {[%clk 01:02:52]} {[%emt
00:02:21]} 23. Ke3 {[%clk 00:40:20]} {[%emt 00:02:24]} Ne4 {[%clk 00:58:27]}
{[%emt 00:04:55]} 24. Rd1 {[%clk 00:29:30]} {[%emt 00:11:20]} Bxb3 {[%clk
00:51:57]} {[%emt 00:07:00]} 25. axb3 {[%clk 00:29:39]} {[%emt 00:00:21]} Rd8
{[%clk 00:52:26]} 26. Ra1 {[%clk 00:26:53]} {[%emt 00:03:16]} Nxd6 {[%clk
00:51:04]} {[%emt 00:01:52]} 27. Rxa7 {[%clk 00:27:06]} {[%emt 00:00:17]} Re8+
{[%clk 00:51:09]} {[%emt 00:00:25]} 28. Kd3 {[%clk 00:23:52]} {[%emt 00:03:44]}
h6 {[%clk 00:48:11]} {[%emt 00:03:27]} 29. Ra5 {[%clk 00:20:27]} {[%emt
00:03:56]} Re7 {[%clk 00:39:59]} {[%emt 00:08:42]} 30. h4 {[%clk 00:13:27]}
{[%emt 00:07:30]} Kg7 {[%clk 00:38:16]} {[%emt 00:02:12]} 31. Rd5 {[%clk
00:12:44]} {[%emt 00:01:13]} Ne4 {[%clk 00:37:13]} {[%emt 00:01:34]} 32. Rb5
{[%clk 00:10:46]} {[%emt 00:02:27]} Nf2+ {[%clk 00:27:20]} {[%emt 00:10:23]} 33.
Kd4 {[%clk 00:09:33]} {[%emt 00:01:43]} Ng4 {[%clk 00:20:06]} {[%emt 00:07:44]}
34. h5 {[%clk 00:08:15]} {[%emt 00:01:48]} Rd7+ {[%clk 00:17:44]} {[%emt
00:02:53]} 35. Kc3 {[%clk 00:07:51]} {[%emt 00:00:54]} Rf7 {[%clk 00:11:24]}
{[%emt 00:06:50]} 36. Nh4 {[%clk 00:07:09]} {[%emt 00:01:11]} gxh5 {[%clk
00:08:54]} {[%emt 00:03:01]} 37. Nxf5+ {[%clk 00:07:08]} {[%emt 00:00:31]} Kg6
{[%clk 00:08:35]} {[%emt 00:00:49]} 38. Nh4+ {[%clk 00:07:26]} {[%emt
00:00:11]} Kg7 {[%clk 00:07:33]} {[%emt 00:01:32]} 39. Nf5+ {[%clk 00:07:29]}
{[%emt 00:00:27]} Kg6 {[%clk 00:07:49]} {[%emt 00:00:15]} 40. Nh4+ {[%clk
00:07:46]} {[%emt 00:00:12]} Kg7 {[%clk 00:08:11]} {[%emt 00:00:09]} 41. Rxh5
{[%clk 00:07:20]} {[%emt 00:00:56]} Nf6 {[%clk 00:07:04]} {[%emt 00:01:36]} 42.
Rb5 {[%clk 00:07:24]} {[%emt 00:00:27]} Ne4+ {[%clk 00:06:30]} {[%emt
00:01:04]} 43. Kd3 {[%clk 00:06:05]} {[%emt 00:01:48]} Nd6 {[%clk 00:05:00]}
{[%emt 00:02:00]} 44. Rd5 {[%clk 00:06:20]} {[%emt 00:00:15]} Rf6 {[%clk
00:05:02]} {[%emt 00:00:29]} 45. g4 {[%clk 00:05:56]} {[%emt 00:00:53]} Kf7
{[%clk 00:05:06]} {[%emt 00:00:27]} 46. Ke3 {[%clk 00:04:04]} {[%emt 00:02:21]}
Ke6 {[%clk 00:05:02]} {[%emt 00:00:34]} 47. Rd1 {[%clk 00:03:55]} {[%emt
00:00:39]} Rf7 {[%clk 00:04:47]} {[%emt 00:00:47]} 48. Nf3 {[%clk 00:03:41]}
{[%emt 00:00:42]} Rf8 {[%clk 00:04:06]} {[%emt 00:01:13]} 49. Rh1 {[%clk
00:03:59]} {[%emt 00:00:11]} Rf6 {[%clk 00:04:12]} {[%emt 00:00:24]} 50. Nd4+
{[%clk 00:04:02]} {[%emt 00:00:26]} Kf7 {[%clk 00:04:27]} {[%emt 00:00:15]} 51.
Rh5 {[%clk 00:03:54]} {[%emt 00:00:38]} Ke7 {[%clk 00:03:18]} {[%emt 00:01:40]}
52. Rc5 {[%clk 00:03:29]} {[%emt 00:00:55]} Kd7 {[%clk 00:03:20]} {[%emt
00:00:28]} 53. Re5 {[%clk 00:02:31]} {[%emt 00:04:51]} Nf7 {[%clk 00:02:17]} 54.
Rd5+ {[%clk 00:02:37]} Rd6 {[%clk 00:02:37]} 55. Rb5 {[%clk 00:02:42]} b6
{[%clk 00:02:31]} 56. Nf5 {[%clk 00:02:10]} {[%emt 00:00:46]} Re6+ {[%clk
00:03:00]} {[%emt 00:00:02]} 57. Kf4 {[%clk 00:02:24]} {[%emt 00:00:15]} Rf6
{[%clk 00:02:12]} {[%emt 00:01:19]} 58. Rd5+ {[%clk 00:02:33]} {[%emt
00:00:21]} Kc6 {[%clk 00:02:22]} {[%emt 00:00:20]} 59. Rd1 {[%clk 00:02:44]}
{[%emt 00:00:19]} Kb5 {[%clk 00:02:14]} {[%emt 00:00:38]} 60. Rd4 {[%clk
00:02:38]} {[%emt 00:00:34]} Kc5 {[%clk 00:02:11]} {[%emt 00:00:35]} 61. Rc4+
{[%clk 00:02:47]} {[%emt 00:00:21]} Kd5 {[%emt 00:00:25]} 1/2-1/2

[Event "South Island Championships 2023"]
[Site "Oamaru, New Zealand"]
[Date "????.??.??"]
[Round "5.2"]
[White "McNabb, Matthew D"]
[Black "Johnson, Quentin J F"]
[Result "1/2-1/2"]
[TimeControl "90 + 30"]
[WhiteFideId "4300823"]
[BlackFideId "4301480"]
[WhiteElo "2236"]
[BlackElo "2089"]

1. d4 {[%clk 01:30:58]} {[%emt 00:00:01]} d5 {[%clk 01:25:05]} {[%emt
00:05:56]} 2. c4 {[%clk 01:31:24]} {[%emt 00:00:04]} e6 {[%clk 01:25:32]}
{[%emt 00:00:03]} 3. Nc3 {[%clk 01:31:51]} {[%emt 00:00:03]} Be7 {[%clk
01:25:57]} {[%emt 00:00:05]} 4. Nf3 {[%clk 01:31:24]} {[%emt 00:00:56]} Nf6
{[%clk 01:26:15]} {[%emt 00:00:12]} 5. Bf4 {[%clk 01:26:46]} {[%emt 00:05:08]}
O-O {[%clk 01:25:15]} {[%emt 00:01:31]} 6. e3 {[%clk 01:26:11]} {[%emt
00:01:05]} c5 {[%clk 01:22:45]} {[%emt 00:03:00]} 7. dxc5 {[%clk 01:20:07]}
{[%emt 00:06:34]} Bxc5 {[%clk 01:23:09]} {[%emt 00:00:05]} 8. Be2 {[%clk
01:10:25]} {[%emt 00:10:12]} dxc4 {[%clk 01:19:23]} {[%emt 00:04:17]} 9. Bxc4
{[%clk 01:05:06]} {[%emt 00:05:48]} a6 {[%clk 01:17:27]} {[%emt 00:02:27]} 10.
O-O {[%clk 01:01:08]} {[%emt 00:04:27]} b5 {[%clk 01:17:47]} {[%emt 00:00:11]}
11. Bb3 {[%clk 01:00:22]} {[%emt 00:01:16]} Bb7 {[%clk 01:16:31]} {[%emt
00:01:46]} 12. Qe2 {[%clk 00:59:14]} {[%emt 00:01:38]} Nbd7 {[%clk 01:14:08]}
{[%emt 00:02:53]} 13. Rac1 {[%clk 00:55:09]} {[%emt 00:04:34]} Rc8 {[%clk
01:14:09]} {[%emt 00:00:29]} 14. Rfd1 {[%clk 00:55:14]} {[%emt 00:00:25]} Qe7
{[%clk 01:14:25]} {[%emt 00:00:14]} 15. Bc2 {[%clk 00:38:59]} {[%emt 00:16:46]}
Rfd8 {[%clk 00:58:27]} {[%emt 00:16:28]} 16. Bb1 {[%clk 00:34:10]} {[%emt
00:05:18]} e5 {[%clk 00:56:34]} {[%emt 00:02:23]} 17. Bg5 {[%clk 00:33:26]}
{[%emt 00:01:14]} h6 {[%clk 00:54:12]} {[%emt 00:02:52]} 18. Bh4 {[%clk
00:32:57]} {[%emt 00:00:59]} e4 {[%clk 00:43:56]} {[%emt 00:10:46]} 19. Nd2
{[%clk 00:27:24]} {[%emt 00:06:04]} Qe6 {[%clk 00:43:29]} {[%emt 00:00:56]} 20.
Ncxe4 {[%clk 00:21:06]} {[%emt 00:06:48]} Bxe4 {[%clk 00:39:59]} {[%emt
00:04:00]} 21. Nxe4 {[%clk 00:21:07]} {[%emt 00:00:28]} Be7 {[%clk 00:16:38]}
{[%emt 00:23:51]} 22. Nxf6+ {[%clk 00:17:57]} {[%emt 00:03:40]} Bxf6 {[%clk
00:17:00]} {[%emt 00:00:08]} 23. Bxf6 {[%clk 00:17:53]} {[%emt 00:00:35]} Nxf6
{[%clk 00:17:26]} {[%emt 00:00:03]} 24. h3 {[%clk 00:17:36]} {[%emt 00:00:48]}
Rxc1 {[%clk 00:17:36]} {[%emt 00:00:19]} 25. Rxc1 {[%clk 00:18:00]} {[%emt
00:00:06]} Qd6 {[%clk 00:17:41]} {[%emt 00:00:25]} 26. Re1 {[%clk 00:12:43]}
{[%emt 00:05:48]} g6 {[%clk 00:16:31]} {[%emt 00:01:40]} 27. Bc2 {[%clk
00:11:09]} {[%emt 00:02:03]} Qb4 {[%clk 00:16:17]} {[%emt 00:00:44]} 28. Rd1
{[%clk 00:11:07]} {[%emt 00:00:32]} Rxd1+ {[%clk 00:15:24]} {[%emt 00:01:23]}
29. Bxd1 {[%clk 00:11:34]} {[%emt 00:00:03]} Ne4 {[%clk 00:15:46]} {[%emt
00:00:08]} 30. a3 {[%clk 00:09:14]} {[%emt 00:02:50]} Qd6 {[%clk 00:16:00]}
{[%emt 00:00:16]} 31. Bc2 {[%clk 00:09:09]} {[%emt 00:00:35]} Nc5 {[%clk
00:16:12]} {[%emt 00:00:18]} 32. Qd1 {[%clk 00:07:49]} {[%emt 00:01:51]} Qc7
{[%clk 00:14:19]} {[%emt 00:02:23]} 33. Qd5 {[%clk 00:07:38]} {[%emt 00:00:40]}
Ne6 {[%clk 00:13:24]} {[%emt 00:01:25]} 34. Qd3 {[%clk 00:03:59]} {[%emt
00:04:10]} a5 {[%clk 00:11:52]} {[%emt 00:02:02]} 35. Bb3 {[%clk 00:03:27]}
{[%emt 00:01:02]} Qc1+ {[%clk 00:11:05]} {[%emt 00:01:18]} 36. Kh2 {[%clk
00:03:55]} {[%emt 00:00:01]} Qxb2 {[%clk 00:11:27]} {[%emt 00:00:08]} 37. Bxe6
{[%clk 00:02:54]} {[%emt 00:01:31]} Qe5+ {[%clk 00:11:51]} {[%emt 00:00:05]} 38.
g3 {[%clk 00:03:14]} {[%emt 00:00:11]} Qxe6 {[%clk 00:12:15]} {[%emt 00:00:06]}
39. Qxb5 {[%clk 00:02:49]} {[%emt 00:00:55]} Qa2 {[%clk 00:12:08]} {[%emt
00:00:37]} 40. Qe8+ {[%clk 00:01:48]} {[%emt 00:01:31]} Kg7 {[%clk 00:10:41]}
{[%emt 00:01:57]} 41. Qe5+ {[%clk 00:02:10]} {[%emt 00:00:08]} Kg8 {[%clk
00:11:07]} {[%emt 00:00:04]} 42. Qe8+ {[%clk 00:02:24]} {[%emt 00:00:17]} Kg7
{[%clk 00:11:32]} {[%emt 00:00:05]} 43. Qe5+ {[%clk 00:02:52]} {[%emt
00:00:01]} Kg8 {[%clk 00:11:57]} {[%emt 00:00:06]} 44. Qe8+ {[%clk 00:01:42]}
{[%emt 00:01:40]} 1/2-1/2

[Event "South Island Championships 2023"]
[Site "Oamaru, New Zealand"]
[Date "????.??.??"]
[Round "5.4"]
[White "Kerr, Atlas"]
[Black "Lee, Edward S"]
[Result "0-1"]
[TimeControl "90 + 30"]
[WhiteFideId "4319486"]
[BlackFideId "4303229"]
[WhiteElo "1853"]
[BlackElo "2088"]

1. b4 {[%clk 01:30:53]} {[%emt 00:00:07]} d5 {[%clk 01:30:46]} {[%emt
00:00:14]} 2. Bb2 {[%clk 01:30:52]} {[%emt 00:00:32]} Qd6 {[%clk 01:31:00]}
{[%emt 00:00:15]} 3. a3 {[%clk 01:22:26]} {[%emt 00:08:58]} e5 {[%clk
01:31:23]} {[%emt 00:00:06]} 4. e3 {[%clk 01:20:02]} {[%emt 00:02:55]} Be6
{[%clk 01:30:51]} {[%emt 00:01:01]} 5. Nf3 {[%clk 01:12:25]} {[%emt 00:08:07]}
f6 {[%clk 01:30:53]} {[%emt 00:00:27]} 6. d3 {[%clk 01:07:13]} {[%emt
00:05:43]} Be7 {[%clk 01:25:55]} {[%emt 00:05:27]} 7. h4 {[%clk 01:02:40]}
{[%emt 00:05:04]} Nh6 {[%clk 01:24:26]} {[%emt 00:01:58]} 8. Nbd2 {[%clk
01:01:41]} {[%emt 00:01:30]} Nd7 {[%clk 01:20:08]} {[%emt 00:04:47]} 9. c4
{[%clk 01:00:15]} {[%emt 00:01:57]} c6 {[%clk 01:19:10]} {[%emt 00:01:28]} 10.
c5 {[%clk 00:52:54]} {[%emt 00:07:51]} Qc7 {[%clk 01:18:47]} {[%emt 00:00:52]}
11. e4 {[%clk 00:52:17]} {[%emt 00:01:08]} d4 {[%clk 01:15:25]} {[%emt
00:03:51]} 12. Be2 {[%clk 00:50:02]} {[%emt 00:02:46]} a5 {[%clk 01:11:08]}
{[%emt 00:04:46]} 13. Nh2 {[%clk 00:41:20]} {[%emt 00:09:12]} b6 {[%clk
01:09:24]} {[%emt 00:02:15]} 14. cxb6 {[%clk 00:38:59]} {[%emt 00:02:51]} Qxb6
{[%clk 01:09:44]} {[%emt 00:00:10]} 15. Nc4 {[%clk 00:37:23]} {[%emt 00:02:06]}
Bxc4 {[%clk 01:09:22]} {[%emt 00:00:51]} 16. dxc4 {[%clk 00:37:48]} {[%emt
00:00:05]} axb4 {[%clk 01:09:36]} {[%emt 00:00:16]} 17. a4 {[%clk 00:37:54]}
{[%emt 00:00:25]} Nc5 {[%clk 01:08:43]} {[%emt 00:01:23]} 18. Bd3 {[%clk
00:37:01]} {[%emt 00:01:23]} O-O {[%clk 01:08:34]} {[%emt 00:00:38]} 19. g4
{[%clk 00:36:19]} {[%emt 00:01:13]} Ra5 {[%clk 01:08:01]} {[%emt 00:01:03]} 20.
f4 {[%clk 00:35:17]} {[%emt 00:01:32]} Rfa8 {[%clk 01:05:44]} {[%emt 00:02:47]}
21. fxe5 {[%clk 00:34:10]} {[%emt 00:01:37]} fxe5 {[%clk 01:05:05]} {[%emt
00:01:08]} 22. g5 {[%clk 00:34:16]} {[%emt 00:00:24]} Nf7 {[%clk 01:04:30]}
{[%emt 00:01:05]} 23. O-O {[%clk 00:34:02]} {[%emt 00:00:45]} Nxa4 {[%clk
01:03:39]} {[%emt 00:01:21]} 24. Qh5 {[%clk 00:33:28]} {[%emt 00:01:03]} g6
{[%clk 01:03:19]} {[%emt 00:00:50]} 25. Qf3 {[%clk 00:30:44]} {[%emt 00:03:15]}
Rf8 {[%clk 01:02:51]} {[%emt 00:00:57]} 26. c5 {[%clk 00:29:54]} {[%emt
00:01:21]} Qxc5 {[%clk 01:01:48]} {[%emt 00:01:32]} 27. Rxa4 {[%clk 00:29:08]}
{[%emt 00:01:17]} Rxa4 {[%clk 01:01:46]} {[%emt 00:00:31]} 28. Rc1 {[%clk
00:29:32]} {[%emt 00:00:07]} Qd6 {[%clk 01:01:47]} {[%emt 00:00:29]} 29. Bc4
{[%clk 00:29:47]} {[%emt 00:00:15]} Kg7 {[%clk 01:01:44]} {[%emt 00:00:33]} 30.
Qg3 {[%clk 00:25:37]} {[%emt 00:04:39]} h6 {[%clk 00:53:57]} {[%emt 00:08:17]}
31. Nf3 {[%clk 00:25:01]} {[%emt 00:01:07]} h5 {[%clk 00:51:04]} {[%emt
00:03:23]} 32. Kg2 {[%clk 00:16:36]} {[%emt 00:08:55]} Ra5 {[%clk 00:50:30]}
{[%emt 00:01:03]} 33. Nd2 {[%clk 00:16:35]} {[%emt 00:00:31]} Nd8 {[%clk
00:50:11]} {[%emt 00:00:49]} 34. Qh3 {[%clk 00:14:05]} {[%emt 00:03:00]} Rf4
{[%clk 00:50:08]} {[%emt 00:00:33]} 35. Be2 {[%clk 00:13:02]} {[%emt 00:01:34]}
Ra2 {[%clk 00:46:45]} {[%emt 00:03:53]} 36. Nc4 {[%clk 00:12:12]} {[%emt
00:01:20]} Qe6 {[%clk 00:45:16]} {[%emt 00:01:58]} 37. Qg3 {[%clk 00:09:42]}
{[%emt 00:03:00]} Rxe4 {[%clk 00:40:40]} {[%emt 00:05:05]} 38. Bf3 {[%clk
00:09:59]} {[%emt 00:00:14]} Rf4 {[%clk 00:40:31]} {[%emt 00:00:39]} 39. Rc2
{[%clk 00:09:36]} {[%emt 00:00:53]} b3 {[%clk 00:39:15]} {[%emt 00:01:46]} 40.
Nxe5 {[%clk 00:08:47]} {[%emt 00:01:20]} Qxe5 {[%clk 00:37:06]} {[%emt
00:02:39]} 41. Re2 {[%clk 00:09:10]} {[%emt 00:00:07]} Qd6 {[%clk 00:31:13]}
{[%emt 00:06:22]} 42. Rxe7+ {[%clk 00:09:04]} {[%emt 00:00:36]} Qxe7 {[%clk
00:31:35]} {[%emt 00:00:09]} 43. Qxf4 {[%clk 00:09:29]} {[%emt 00:00:05]} Rxb2+
{[%clk 00:31:58]} {[%emt 00:00:07]} 44. Kg3 {[%clk 00:09:50]} {[%emt 00:00:08]}
Nf7 {[%clk 00:30:43]} {[%emt 00:01:45]} 0-1